Cogmind - Beta 14 @@@ ROGUE MODE // 2024.08.16 @ 16:43:04 Player: Cwaftwer Result: Destroyed by SW-50D(R) with Subdweller Machine Gun Performance ------------- Evolutions (0) 0 Regions Visited (3) 600 Robots Destroyed (39) 195 Value Destroyed (701) 701 Prototype IDs (5) 100 Alien Tech Used (0) 0 Bonus (0) 0 TOTAL SCORE: 1596 Bonus ------- None Cogmind --------- Core Integrity 0/250 Matter 293/300 Energy 98/100 System Corruption 1% Temperature Cool (1) Movement Treading (160) Location -10/Subcaves Parts ------- > --- POWER (1) -------- (None) > --- PROPULSION (2) --- Light Treads > --- UTILITY (2) ------ Medium Storage Unit Signal Interpreter > --- WEAPON (2) ------- Rocket Launcher > --- INVENTORY (10) --- Heat Sink High-capacity Matter Pod (149) Visual Processing Unit Improved Targeting Computer Core Shielding Hacking Suite Battle Cannon Rocket Launcher Makeshift Sword Peak State ------------ > --- POWER ------------ Ion Engine > --- PROPULSION ------- Light Treads Light Treads > --- UTILITY ---------- Medium Storage Unit Signal Interpreter > --- WEAPON ----------- Improved Light Cannon Improved Light Cannon > --- INVENTORY -------- Ion Engine Light Treads Heat Sink Small Matter Pod Visual Processing Unit Improved Terrain Scanner Core Shielding Hacking Suite Grenade Launcher [Rating: 10] Favorites ----------- Power Ion Engine Engine Ion Engine Propulsion Light Treads Treads Light Treads Utility Signal Interpreter Device Improved Terrain Scanner Storage Medium Storage Unit Processor Signal Interpreter Weapon Improved Light Cannon Energy Gun Medium Laser Ballistic Gun Assault Rifle Ballistic Cannon Improved Light Cannon Launcher Rocket Launcher Build | -11 -10 -10 -10 ------- Run | Yrd Mat Min Sub Slots Evolved . | . . . . Power . | . . . . Propulsion . | . . . . Utility . | . . . . Weapon . | . . . . Parts Attached 18 | 7 8 1 2 Power 2 | 1 . . 1 Engine 2 | 1 . . 1 Core . | . . . . Reactor . | . . . . Propulsion 6 | 2 3 . 1 Treads 6 | 2 3 . 1 Leg . | . . . . Wheel . | . . . . Hover . | . . . . Flight . | . . . . Utility 4 | 2 2 . . Device 1 | 1 . . . Storage 2 | 1 1 . . Processor 1 | . 1 . . Hackware . | . . . . Protection . | . . . . Artifact . | . . . . Weapon 6 | 2 3 1 . Energy Gun 1 | . 1 . . Energy Cannon . | . . . . Ballistic Gun 2 | 2 . . . Ballistic Cannon 2 | . 2 . . Launcher 1 | . . 1 . Special Weapon . | . . . . Impact Weapon . | . . . . Slashing Weapon . | . . . . Piercing Weapon . | . . . . Special Melee Weapon . | . . . . Unidentified Prototypes . | . . . . Parts Lost 4 | . . . 4 Power 1 | . . . 1 Propulsion 2 | . . . 2 Utility . | . . . . Weapon 1 | . . . 1 Highest Loss Streak 3 | . . . 3 To Critical Strikes . | . . . . Average Slot Usage (%) 94 | . 99 100 90 Engine 14 | . 14 14 14 Treads 23 | . 28 28 18 Device 1 | . 2 . . Storage 14 | . 14 14 14 Processor 12 | . 11 14 14 Energy Gun 1 | . 5 . . Ballistic Gun 4 | . 13 . . Ballistic Cannon 13 | . 9 21 14 Launcher 7 | . . 6 14 Peak Build Rating 10 | 9 10 10 10 Average Rating 9 | 5 8 10 9 On Entrance 7 | . 9 10 10 Naked Turns . | . . . . Heaviest Build 23 | 15 23 23 23 Greatest Support 40 | 40 40 40 40 Greatest Overweight (x) 1 | . . . 1 Average Overweight (x) . | . . . . Largest Inventory Capacity 10 | 8 10 10 10 Average Capacity 9 | 7 9 10 10 Most Carried 10 | 4 10 10 10 Average Carried 9 | 2 8 10 9 Final Capacity 10 | 8 10 10 10 Final Carried 10 | 4 10 10 9 Class Distribution -------------------- 100% | Mutant Dominant Class ---------------- Mutant | -10/Materials Mutant | -10/Mines Mutant | -10/Subcaves Resources | -11 -10 -10 -10 ----------- Run | Yrd Mat Min Sub Matter Collected 1376 | 292 425 129 530 Remotely . | . . . . Salvage Created 955 | 39 662 130 124 Parts 77 | 4 49 14 10 Haulers Intercepted 2 | . 2 . . Recyclers Shooed 1 | 1 . . . Parts Field Recycled . | . . . . Retrieved Matter . | . . . . Parts Self-Destructed 6 | . . . 6 Prevented . | . . . . Kills | -11 -10 -10 -10 ------- Run | Yrd Mat Min Sub Combat Hostiles Destroyed 23 | . 11 5 7 Guns 11 | . 11 . . Cannons 4 | . . 3 1 AOE 8 | . . 2 6 Classes Destroyed 10 | 1 8 . 1 Worker 2 | . 1 1 . Builder 3 | . 1 2 . Tunneler 3 | 2 . 1 . Hauler 2 | . 2 . . Recycler 2 | . 1 1 . Operator 1 | . 1 . . Watcher 3 | . 3 . . Swarmer 11 | . 6 5 . Grunt 5 | . 5 . . Subdweller 7 | . . . 7 Best Kill Streak 4 | 2 3 3 4 Combat Bots Only 4 | . 3 3 4 Max Kills in Single Turn 2 | 1 2 2 1 Gunslinging . | . . . . Exploded 1 | . . 1 1 Melee . | . . . . Uniques/NPCs Destroyed . | . . . . Combat | -11 -10 -10 -10 -------- Run | Yrd Mat Min Sub Hostile Shots Fired 108 | . 48 30 30 Missed 34 | . 13 8 13 Damage Taken 1069 | . 331 218 520 Core 254 | . 57 54 143 Absorbed by Shields . | . . . . Regen/Repaired (Parts) 11 | . 11 . . Core Remaining (%) 100 | 100 . . . Volleys Fired 110 | 5 57 20 28 Largest 2 | 2 2 2 1 Hottest 78 | 40 78 78 39 Shots Fired 174 | 10 104 31 29 Gun 100 | 10 90 . . Cannon 41 | . 14 23 4 Launcher 33 | . . 8 25 Special . | . . . . Kinetic 118 | 10 81 23 4 Thermal 23 | . 23 . . Explosive 33 | . . 8 25 Electromagnetic . | . . . . Robot Hit Streak 16 | 3 16 4 6 Robot Miss Streak 5 | 2 5 4 2 Penetration Max . | . . . . Secondary Targets 2 | . 2 . . Max Gunslinging Chain 1 | . 1 . . Shots Hit Robots 89 | 6 55 14 14 Core Hits 54 | 2 29 9 14 Critical Kills . | . . . . Critical Parts Destroyed . | . . . . Critical Strikes 3 | . 2 1 . Burn 2 | . 2 . . Blast 1 | . . 1 . Melee Attacks . | . . . . Impact . | . . . . Slashing . | . . . . Piercing . | . . . . Sneak Attacks . | . . . . Combat Hostiles . | . . . . Follow-up Attacks . | . . . . Damage Inflicted 2907 | 81 743 785 1298 Guns 779 | 81 698 . . Cannons 370 | . 45 283 42 Explosions 1758 | . . 502 1256 Melee . | . . . . Ramming . | . . . . Kinetic 964 | 81 558 283 42 Thermal 185 | . 185 . . Explosive 1758 | . . 502 1256 Electromagnetic . | . . . . Impact . | . . . . Slashing . | . . . . Piercing . | . . . . Highest Corruption 1 | . 1 1 1 Average Corruption 1 | . 1 1 1 Corruption Purged . | . . . . Corruption Blocked . | . . . . Effects 29 | . 11 4 14 Message Errors 8 | . 4 . 4 Matter Fused 7 | . 2 1 4 Heat Flow Errors 3 | . . 2 1 Energy Discharges 5 | . 3 . 2 Parts Fused 1 | . 1 . . Data Loss (minor) 2 | . 1 . 1 Misfires 1 | . . . 1 Alerts 2 | . . 1 1 Overload Shots . | . . . . Overflow Damage 64 | . 3 33 28 Projectiles 32 | . 3 29 . Explosions 32 | . . 4 28 Melee . | . . . . Knockbacks 1 | . . 1 . Impact . | . . . . Kinetic 1 | . . 1 . Secondary . | . . . . Self-Inflicted Damage 221 | . . 45 176 Shots 11 | . . 3 8 Rammed . | . . . . Targets Rammed . | . . . . Kicked . | . . . . Crushed . | . . . . Highest Temperature 234 | . 75 234 222 Average Temperature 43 | . 17 73 105 Received Heat Transfer 174 | . 102 . 72 Siege Activations . | . . . . Robots Corrupted . | . . . . Combat Hostiles . | . . . . Parts Fried . | . . . . Impact Corruptions . | . . . . Robots Melted . | . . . . Combat Hostiles . | . . . . Parts Melted 1 | . 1 . . Heat Transferred 703 | . 703 . . Parts Sabotaged . | . . . . Parts Stolen . | . . . . Parts Stripped . | . . . . Power Chain Reactions . | . . . . Alert | -11 -10 -10 -10 ------- Run | Yrd Mat Min Sub Peak Influence 217 | 10 217 200 . Initial 6 | . 6 . . Average 59 | 4 64 59 . Maximum Alert Level 1 | . 1 1 . Low Security (%) 99 | 100 99 97 . Level 1 . | . . 2 . Level 2 . | . . . . Level 3 . | . . . . Level 4 . | . . . . Level 5 . | . . . . High Security . | . . . . Max Security . | . . . . Squads Dispatched 1 | . 1 . . Investigation . | . . . . Extermination . | . . . . Reinforcement 1 | . 1 . . Assault . | . . . . Garrison . | . . . . Intercept . | . . . . Searches Triggered . | . . . . Construction Impeded . | . . . . Haulers Reinforced . | . . . . Active Scanning Responses . | . . . . Cargo Convoy Interrupts . | . . . . Stealth | -11 -10 -10 -10 --------- Run | Yrd Mat Min Sub Distress Signals 1 | . 1 . . Communications Jammed . | . . . . Distress Signals . | . . . . Times Spotted 35 | . 21 5 9 Peak Tracking Total 3 | . 3 3 3 Tactical Retreats 1 | . 1 . . Traps | -11 -10 -10 -10 ------- Run | Yrd Mat Min Sub Traps Triggered 1 | . 1 . . Indirectly . | . . . . Trap Hack Attempts . | . . . . Triggered . | . . . . Disarmed . | . . . . Reprogrammed . | . . . . Reused . | . . . . Traps Extracted . | . . . . Installed . | . . . . Triggered . | . . . . Machines | -11 -10 -10 -10 ---------- Run | Yrd Mat Min Sub Machines Disabled 1 | . . 1 . Max in Single Turn 1 | . . 1 . Machines Repaired . | . . . . Machines Dismantled . | . . . . Machines Sabotaged . | . . . . Overloaded Fab Kills . | . . . . Hacking | -11 -10 -10 -10 --------- Run | Yrd Mat Min Sub Machines Accessed 7 | . 6 . 1 Terminals 4 | . 4 . . Fabricators . | . . . . Repair Stations 1 | . 1 . . Recycling Units 1 | . 1 . . Scanalyzers . | . . . . Garrison Access . | . . . . Total Hacks 20 | . 16 . 4 Successful 16 | . 12 . 4 Failed 4 | . 4 . . Catastrophic . | . . . . Database Lockouts . | . . . . Manual . | . . . . Terminals 11 | . 11 . . Fabricators . | . . . . Repair Stations 2 | . 2 . . Recycling Units 3 | . 3 . . Scanalyzers . | . . . . Garrison Access . | . . . . Terminal Hacks 11 | . 7 . 4 Record 4 | . . . 4 Prototype ID Bank 3 | . 3 . . Terminal Index 1 | . 1 . . Alert Level 1 | . 1 . . Locate Traps 2 | . 2 . . Fabricator Hacks . | . . . . Repair Station Hacks 2 | . 2 . . Scan Component 1 | . 1 . . Repair 1 | . 1 . . Recycling Unit Hacks 3 | . 3 . . Process 1 | . 1 . . Report Inventory 1 | . 1 . . Retrieve Matter 1 | . 1 . . Scanalyzer . | . . . . Garrison Access Hacks . | . . . . Unauthorized Hacks . | . . . . Terminals . | . . . . Fabricators . | . . . . Repair Stations . | . . . . Recycling Units . | . . . . Scanalyzers . | . . . . Garrison Access . | . . . . Data Cores Recovered 1 | . 1 . . Used . | . . . . Hacking Detections 4 | . 4 . . Full Trace Events . | . . . . Feedback Events . | . . . . Feedback Blocked . | . . . . Robot Schematics Acquired . | . . . . Robots Built . | . . . . Authchips . | . . . . Time . | . . . . Total Robot Build Rating . | . . . . Part Schematics Acquired . | . . . . Parts Built . | . . . . Authchips . | . . . . Time . | . . . . Total Part Build Rating . | . . . . Parts Repaired 1 | . 1 . . Time 26 | . 26 . . Parts Recycled . | . . . . Recycled Matter 228 | . 228 . . Retrieved Matter 400 | . 400 . . Retrieved Components . | . . . . Parts Scanalyzed . | . . . . Part Schematics Acquired . | . . . . Parts Damaged . | . . . . Bothacking | -11 -10 -10 -10 ------------ Run | Yrd Mat Min Sub Used RIF Installer . | . . . . Robots Hacked . | . . . . Non-combat . | . . . . Combat . | . . . . Robot Hacks Applied . | . . . . Relay Couplers Released . | . . . . Fabnet Peak Effective % . | . . . . Robots Rewired . | . . . . Allies Hacked . | . . . . Hacks Repelled . | . . . . Allies | -11 -10 -10 -10 -------- Run | Yrd Mat Min Sub Total Allies . | . . . . Largest Group . | . . . . Highest-Rated Group . | . . . . Highest-Rated Ally . | . . . . Total Orders . | . . . . Ally Attacks . | . . . . Total Damage . | . . . . Kills . | . . . . Allies Corrupted . | . . . . Allies Melted . | . . . . Intel | -11 -10 -10 -10 ------- Run | Yrd Mat Min Sub Robot Analysis Total . | . . . . Derelict Logs Recovered 2 | . . . 2 Drone Launches . | . . . . Drone Recoveries . | . . . . Exploration | -11 -10 -10 -10 ------------- Run | Yrd Mat Min Sub Turns Passed 3728 | 115 1291 468 1854 Spaces Moved 1826 | 57 640 259 870 Core 14 | 14 . . . Treads 1812 | 43 640 259 870 Legs . | . . . . Wheels . | . . . . Hover . | . . . . Flight . | . . . . Fastest Speed 50 | 50 160 160 160 Average Speed 181 | 132 160 160 206 Slowest Speed 240 | 160 160 160 240 Overloaded Moves . | . . . . Propulsion Burnouts . | . . . . Robots Hopped . | . . . . Cave-ins Triggered . | . . . . Exploration Rate (%) 52 | 4 90 50 64 Regions Visited 3 Branch Regions 2 Pre-discovered Areas 1 | . . . 1 Known Exits Taken 2 | . 1 1 . Unknown Exits Taken 1 | 1 . . . Scrap Searched 3 | . . . 3 Spaces Dug 9 | . 1 . 8 Terrain Destroyed 200 | . 4 56 140 Melee . | . . . . Projectile 10 | . 4 5 1 AOE 190 | . . 51 139 Terrain Rammed . | . . . . Walls Destroyed . | . . . . Machines Disabled . | . . . . Actions | -11 -10 -10 -10 --------- Run | Yrd Mat Min Sub Total 2079 | 86 807 281 905 Wait 79 | 7 70 2 . Move 1823 | 56 639 258 870 Hop . | . . . . Pick Up 34 | 11 20 . 3 Fast Attach . | . . . . Attach 10 | 7 2 . 1 Detach . | . . . . Swap 8 | . 6 1 1 Drop 15 | . 13 . 2 Fire 110 | 5 57 20 28 Melee . | . . . . Ram . | . . . . Kick . | . . . . Crush . | . . . . Escape Stasis . | . . . . Rewire . | . . . . Trap . | . . . . Miscellaneous . | . . . . Route ------- -11/Scrapyard -10/Materials (discovered 4 exits: *Mat x3 / *Min) -10/Mines -10/Subcaves (discovered 2 exits: *Mat x2) History --------- Turn | Location | Event 42 | -11/Scrapyard | Discovered new exit (range 15) 116 | -11/Scrapyard | Entered Materials 307 | -10/Materials | Build established: Mutant 393 | -10/Materials | Discovered new exit (range 7) 402 | -10/Materials | Identified exit to Materials 757 | -10/Materials | Discovered exit to Materials (range 13) 794 | -10/Materials | Repaired Ion Engine 837 | -10/Materials | Discovered new exit (range 6) 846 | -10/Materials | Identified exit to Mines 892 | -10/Materials | Discovered exit to Materials (range 14) 1407 | -10/Materials | Entered Mines 1858 | -10/Mines | Discovered new exit (range 10) 1872 | -10/Mines | Identified exit to Subcaves 1875 | -10/Mines | Entered Subcaves 1903 | -10/Subcaves | Learned location of Zion (-7) 1960 | -10/Subcaves | A swath of the cavern ceiling suddenly collapsed 2144 | -10/Subcaves | Shifting Twisted Machinery released Mak. Sword 2152 | -10/Subcaves | Shifting Twisted Machinery released Shrapnel Trap 2240 | -10/Subcaves | Core integrity fell below 50% 2263 | -10/Subcaves | Discovered new exit (range 10) 2287 | -10/Subcaves | Identified exit to Materials 2301 | -10/Subcaves | Visited Clippyterm 2308 | -10/Subcaves | Learned Research security intel 2308 | -10/Subcaves | Learned Factory stockpile data 2636 | -10/Subcaves | Learned Materials terminal intel 3560 | -10/Subcaves | Shifting Twisted Machinery released Shrapnel Trap 3564 | -10/Subcaves | Shifting Twisted Machinery released Mak. Light Armor Plating 3618 | -10/Subcaves | Discovered exit to Materials (range 8) 3724 | -10/Subcaves | A Subdweller sparked back to life 3728 | -10/Subcaves | Core integrity fell below 20% 3729 | -10/Subcaves | Destroyed by SW-50D(R) with Subdweller Machine Gun Last Messages --------------- Found 66 Matter. Acquired 66 matter. Searching scrap... Found Riot Gun. Found Shrapnel Trap. Found 49 Matter. Acquired 49 matter. Searching scrap... Found Sub. Power Source. Found Sub. Laser. Found 54 Matter. Acquired 54 matter. The unstable cave ceiling collapses. W6-CV7(R) creaks and sparks as it begins to move. Imp. Light Cannon destroyed. Destroyed Imp. Light Cannon. Ion Engine destroyed. Destroyed Ion Engine. Lgt. Treads destroyed. Map ----- +----------------------------------------------------+ | ?????????????????????????????????????????? | | ?????????????????????????????????????????? | | ?????????????????????????????????????????? | | ?????????????????????????????????????????? | | ?????????????????????????????????????????? | | ?????????????????????????????????????????? | | ?????????????????????????????????????????? | | ?????????????????????????????????????????? | | ?????????????????????????????????????????? | | ?????????????????????????????????????????? | | ????????????????#####????????????????????? | | ??????????????### ##???????????????????? | | ????????????### # #???????????????????? | | ???????????##][" ###??????????????????? | | ???????????#"[& #??????????????????? | | ???????????#=*& ######?####????????? | | ???????????#["# # " ### !#########? | | ???????????# # "" ## ## ## | | ???????????### ### # # " # | | ?????????????## ###?######& # | | ??????????????# #????????### #### # | | ??????????????### #??????????####??# ## | | ???????????????## ##???????????????## | | ???????????????# ##???????????????# | | ???????????????# #???????????????## # | | ???????????????# @ #????????????????#### | | ???????????????# #???????????????????? | | ???????????????# R #?????????????####??? | | ???????????????## R ###???????????# #### | | ???????????????? #???????????# # | | ????????????????# #???????????### | | ????????????????# & <#?????????????# | | ????????????????#R << <#?????????????# | | ???????????????? # < #?????????????# | | ????????????????